Cogmind - Beta 15 @@@ ROGUE MODE // 2025.08.28 @ 20:47:29 Player: winnking222 Result: Destroyed by S-43 Plague with Heavy Machine Gun Performance ------------- Evolutions (8) 4000 Regions Visited (12) 2400 Robots Destroyed (61) 305 Value Destroyed (1640) 1640 Prototype IDs (27) 540 Alien Tech Used (0) 0 Bonus (800) 800 TOTAL SCORE: 9685 Bonus ------- Registered with UFD 300 Met Optimus in HQ 500 Cogmind --------- Core Integrity 0/1450 Matter 297/300 Energy 99/100 System Corruption 4% Temperature Cool (0) Movement Core (50) Location -2/Research Parts ------- > --- POWER (2) -------- (None) > --- PROPULSION (8) --- (None) > --- UTILITY (10) ----- Advanced Signal Interpreter Faulty Experimental Signal Interpreter > --- WEAPON (3) ------- (None) > --- INVENTORY (5) ---- Light Quantum Reactor Deep Structural Scanner Point Singularity Launcher Improved Plasma Cutter Peak State ------------ > --- POWER ------------ Backup Power I Light Particle Reactor > --- PROPULSION ------- Nuclear Pulse Thruster Nuclear Pulse Thruster Advanced Surge Thruster Cooled Field Propulsion Drive Flightbrick > --- UTILITY ---------- Medium Storage Unit Deep Structural Scanner Enhanced Optical Array Advanced Sensor Array Improved Signal Interpreter Advanced Reaction Control System Cloaking Device Gun Armor Improved Hacking Suite System Shield System Shield > --- WEAPON ----------- Point Singularity Launcher Thermal Lance > --- INVENTORY -------- Light Antimatter Reactor Cooled Field Propulsion Drive Mapping Drone Bay Improved KE Penetrator Improved Plasma Cutter Junk Cannon Vortex Trap [Rating: 144] Favorites ----------- Power Improved Ion Engine Engine Improved Ion Engine Power Core Light Fission Core Reactor Light Particle Reactor Propulsion Armored Treads Treads Armored Treads Leg Improved Aluminum Leg Wheel Wheel Flight Unit Flightbrick Utility Makeshift Light Armor Plating Device Deep Structural Scanner Storage Medium Storage Unit Processor Enhanced Optical Array Hackware Improved Hacking Suite Protection Makeshift Light Armor Plating Weapon Subdweller Beam Cannon Energy Gun EM Pulse Gun Energy Cannon Subdweller Beam Cannon Ballistic Gun Subdweller Machine Gun Ballistic Cannon Improved Light Cannon Launcher Point Singularity Launcher Special Weapon Junk Cannon Piercing Weapon Thermal Lance Build | -11 -10 -10 -10 -9 -9 -6 -6 -6 -5 -4 -3 -2 ------- Run | Yrd Mat Min Sub Rec Scr Fac Was Fac Fac Fac Res Res Slots Evolved 16 | . . . . . . 8 . . 2 2 2 2 Power 1 | . . . . . . 1 . . . . . . Propulsion 6 | . . . . . . 3 . . 1 1 . 1 Utility 8 | . . . . . . 3 . . 1 1 2 1 Weapon 1 | . . . . . . 1 . . . . . . Parts Attached 96 | 9 5 3 18 2 12 16 . 6 6 9 3 7 Power 19 | 1 . . 6 1 . 3 . 2 . 3 2 1 Engine 12 | 1 . . 6 1 . 3 . . . 1 . . Core 2 | . . . . . . . . 2 . . . . Reactor 5 | . . . . . . . . . . 2 2 1 Propulsion 22 | 3 2 3 2 . 3 3 . 1 1 3 . 1 Treads 4 | 2 . 2 . . . . . . . . . . Leg 4 | 1 2 1 . . . . . . . . . . Wheel 4 | . . . 2 . 2 . . . . . . . Hover . | . . . . . . . . . . . . . Flight 10 | . . . . . 1 3 . 1 1 3 . 1 Utility 35 | 2 1 . 2 1 5 9 . 3 4 3 1 4 Device 13 | 1 . . . . 2 3 . 2 2 1 . 2 Storage 6 | 1 1 . . 1 2 1 . . . . . . Processor 8 | . . . . . . 3 . . 2 1 . 2 Hackware 3 | . . . . . . . . 1 . 1 1 . Protection 5 | . . . 2 . 1 2 . . . . . . Artifact . | . . . . . . . . . . . . . Weapon 20 | 3 2 . 8 . 4 1 . . 1 . . 1 Energy Gun 3 | 2 . . . . 1 . . . . . . . Energy Cannon 4 | . . . 4 . . . . . . . . . Ballistic Gun 4 | 1 . . 1 . 1 . . . 1 . . . Ballistic Cannon 5 | . 2 . 3 . . . . . . . . . Launcher 1 | . . . . . . . . . . . . 1 Special Weapon 2 | . . . . . 1 1 . . . . . . Impact Weapon . | . . . . . . . . . . . . . Slashing Weapon . | . . . . . . . . . . . . . Piercing Weapon 1 | . . . . . 1 . . . . . . . Special Melee Weapon . | . . . . . . . . . . . . . Unidentified Prototypes 9 | . . . . . 1 2 . . 1 2 . 3 Corrupted Parts 3 | . . . . . 3 . . . . . . . System Corruption 12 | . . . . . 12 . . . . . . . Parts Lost 21 | . . . 2 . . 3 . 2 . 1 . 13 Power 5 | . . . . . . 2 . . . 1 . 2 Propulsion 6 | . . . 1 . . . . . . . . 5 Utility 8 | . . . . . . . . 2 . . . 6 Weapon 2 | . . . 1 . . 1 . . . . . . Highest Loss Streak 12 | . . . 1 . . 1 . 2 . 1 . 12 To Critical Strikes 2 | . . . 1 . . . . . . . . 1 Average Backups 7 | 4 7 8 6 5 9 7 7 7 7 7 7 5 Power . | 1 . . . . . . 1 . 1 . . 1 Propulsion 2 | 2 3 3 1 2 2 . 1 2 2 1 2 . Utility 2 | . . . 2 2 3 3 3 2 2 2 1 1 Weapon 1 | 1 2 4 1 . 2 2 2 1 1 2 2 2 Tool/Special . | . . . . . . . . . . . . . Unused Backups 30 | . 1 1 7 . 5 9 1 1 . 1 . 4 Power 2 | . 1 . . . . . . . . . . 1 Propulsion 9 | . . . 3 . 5 . . . . . . 1 Utility 8 | . . 1 1 . . 4 1 . . 1 . . Weapon 9 | . . . 3 . . 4 . 1 . . . 1 Tool/Special 2 | . . . . . . 1 . . . . . 1 Average Slot Usage (%) 78 | . 100 99 99 99 64 53 53 53 60 67 62 63 Engine 11 | . 14 14 13 14 11 6 . . 4 4 4 2 Treads 13 | . 8 7 23 14 12 . . . . . . . Leg 1 | . 20 20 . . . . . . . . . . Wheel 7 | . . . 4 14 11 . . . . . . . Flight 2 | . . . . . . 9 10 10 15 18 16 15 Device 3 | . 14 14 1 . 1 6 8 8 10 8 8 12 Storage 11 | . 14 14 14 14 10 4 5 5 5 4 4 2 Processor 1 | . . . . . . 9 15 11 5 9 8 7 Protection 8 | . . . 12 13 8 10 8 5 5 4 4 2 Energy Cannon 8 | . . . 15 28 5 . . . . . . . Ballistic Cannon 4 | . 18 28 12 . . . . . . . . . Peak Build Rating 144 | 7 12 14 22 21 27 97 92 94 101 116 125 144 Average Rating 30 | 5 10 11 19 20 17 80 89 88 94 109 117 116 On Entrance 53 | . 7 12 14 21 21 18 91 84 89 96 113 125 Naked Turns 10 | . . . . . 10 . . . . . . . Heaviest Build 211 | 15 24 24 35 47 211 28 24 27 30 37 38 40 Greatest Support 47 | 40 40 40 40 20 20 29 29 29 35 41 41 47 Greatest Overweight (x) 20 | . . 1 2 2 20 1 . . . . . 3 Average Overweight (x) 1 | . . . . 1 5 . . . . . . . Largest Inventory Capacity 35 | 8 10 10 10 15 35 35 10 10 10 10 10 10 Average Capacity 15 | 7 9 10 10 14 21 9 10 10 10 10 10 9 Most Carried 29 | 6 10 10 10 12 29 29 10 10 10 10 10 10 Average Carried 11 | 5 8 9 9 11 14 9 9 9 9 9 9 7 Final Capacity 35 | 8 10 10 10 15 35 10 10 10 10 10 10 5 Final Carried 29 | 5 10 10 10 12 29 10 10 10 10 10 9 4 Class Distribution -------------------- 62% | Mutant 13% | Hauler-Mutant 12% | Scavenger-Mutant 4% | Hacker-Sprinter Dominant Class ---------------- Mutant | -10/Materials Mutant | -10/Mines Mutant | -10/Subcaves Mutant | -9/Recycling Mutant | -9/Scraptown Mutant | -6/Factory Mutant | -6/Waste Scout | -6/Factory Sprinter | -5/Factory Hacker-Sprinter | -4/Factory Hacker-Sprinter | -3/Research Hacker-Ninja | -2/Research Resources | -11 -10 -10 -10 -9 -9 -6 -6 -6 -5 -4 -3 -2 ----------- Run | Yrd Mat Min Sub Rec Scr Fac Was Fac Fac Fac Res Res Matter Collected 2628 | 291 152 285 658 69 387 214 . 60 224 129 115 44 Remotely . | . . . . . . . . . . . . . Salvage Created 2110 | 125 207 149 736 50 . 214 . 78 234 129 150 38 Parts 120 | 11 21 6 55 3 . 9 . 4 4 2 4 1 Haulers Intercepted 1 | . 1 . . . . . . . . . . . Recyclers Shooed 1 | 1 . . . . . . . . . . . . Parts Field Recycled . | . . . . . . . . . . . . . Retrieved Matter . | . . . . . . . . . . . . . Parts Self-Destructed 19 | . . . 19 . . . . . . . . . Prevented . | . . . . . . . . . . . . . Kills | -11 -10 -10 -10 -9 -9 -6 -6 -6 -5 -4 -3 -2 ------- Run | Yrd Mat Min Sub Rec Scr Fac Was Fac Fac Fac Res Res Combat Hostiles Destroyed 36 | . 7 6 21 . . . . . . 1 1 . Melee 2 | . . . . . . . . . . 1 1 . Guns 1 | . . . 1 . . . . . . . . . Cannons 33 | . 7 6 20 . . . . . . . . . Classes Destroyed 13 | 1 5 1 1 1 . . . 2 . 2 . . Worker 3 | . 1 . . . . . . 1 1 . . . Builder 1 | . . . . . . . . 1 . . . . Tunneler 5 | 5 . . . . . . . . . . . . Hauler 1 | . 1 . . . . . . . . . . . Recycler 4 | . . . . 1 . 2 . . 1 . . . Mechanic 1 | . . . . . . . . 1 . . . . Operator 2 | . . . . . . . . . . 1 . 1 Watcher 9 | . 3 . . . . . . . 2 2 2 . Swarmer 10 | . 6 1 3 . . . . . . . . . Grunt 5 | . 1 4 . . . . . . . . . . Programmer 2 | . . . . . . . . . . 1 1 . Subdweller 18 | . . . 18 . . . . . . . . . Assembled 1 | . . 1 . . . . . . . . . . Best Kill Streak 6 | 2 6 2 3 1 . 2 . 2 3 1 2 1 Combat Bots Only 4 | . 4 2 3 . . . . . . 1 1 . Max Kills in Single Turn 2 | 1 1 2 1 1 . 1 . 1 1 1 1 1 Gunslinging . | . . . . . . . . . . . . . Exploded . | . . . . . . . . . . . . . Melee 1 | . . . . . . . . . . 1 1 . Uniques/NPCs Destroyed . | . . . . . . . . . . . . . Combat | -11 -10 -10 -10 -9 -9 -6 -6 -6 -5 -4 -3 -2 -------- Run | Yrd Mat Min Sub Rec Scr Fac Was Fac Fac Fac Res Res Hostile Shots Fired 538 | . 21 28 82 . . 86 7 77 6 35 23 173 Missed 237 | . 7 6 28 . . 45 1 45 3 21 14 67 Hits 301 | . 14 22 54 . . 41 6 32 3 14 9 106 Melee 6 | . . . . . . . 6 . . . . . Projectile 295 | . 14 22 54 . . 41 . 32 3 14 9 106 AOE 5 | . . . 1 . . . . . . 4 . . Critical Strikes 16 | . . . 2 . . 1 3 2 . 1 . 7 Damage Taken 6680 | 26 111 289 1055 . 28 575 305 943 59 523 101 2665 Core 2085 | . 20 43 106 . 28 59 148 156 20 39 . 1466 Absorbed by Shields . | . . . . . . . . . . . . . Regen/Repaired (Parts) 129 | . . . . . . . . 81 . . . 48 Core Remaining (%) 78 | 100 . . . . 21 . . 57 98 96 100 . Volleys Fired 116 | 11 15 22 68 . . . . . . . . . Largest 2 | 2 2 2 2 . . . . . . . . . Hottest 160 | 80 66 66 160 . . . . . . . . . Shots Fired 232 | 21 30 44 135 2 . . . . . . . . Gun 27 | 21 . . 6 . . . . . . . . . Cannon 205 | . 30 44 129 2 . . . . . . . . Launcher . | . . . . . . . . . . . . . Special . | . . . . . . . . . . . . . Kinetic 146 | 1 30 44 71 . . . . . . . . . Thermal 59 | . . . 57 2 . . . . . . . . Explosive . | . . . . . . . . . . . . . Electromagnetic 27 | 20 . . 7 . . . . . . . . . Robot Hit Streak 8 | 5 4 3 8 5 . . . . . . . . Robot Miss Streak 4 | 1 4 4 3 1 . . . . . . . . Penetration Max . | . . . . . . . . . . . . . Secondary Targets . | . . . . . . . . . . . . . Shots Hit Robots 132 | 14 14 19 64 1 . 2 . 4 4 6 3 1 Core Hits 67 | 7 12 9 26 1 . 1 . 1 4 3 2 1 Critical Kills 2 | . . . 2 . . . . . . . . . Critical Parts Destroyed 1 | . . . 1 . . . . . . . . . Critical Strikes 11 | . . 1 10 . . . . . . . . . Destroy 6 | . . . 6 . . . . . . . . . Blast 4 | . . 1 3 . . . . . . . . . Corrupt 1 | . . . 1 . . . . . . . . . Melee Attacks 97 | . . . . . . 17 . 20 9 22 18 11 Thermal 97 | . . . . . . 17 . 20 9 22 18 11 Impact . | . . . . . . . . . . . . . Slashing . | . . . . . . . . . . . . . Piercing . | . . . . . . . . . . . . . Sneak Attacks 9 | . . . . . . 2 . 3 2 . 1 1 Combat Hostiles . | . . . . . . . . . . . . . Follow-up Attacks . | . . . . . . . . . . . . . Damage Inflicted 4697 | 258 358 414 1512 26 . 219 . 504 428 504 302 172 Guns 254 | 172 . . 82 . . . . . . . . . Cannons 2228 | . 358 414 1430 26 . . . . . . . . Explosions 86 | 86 . . . . . . . . . . . . Melee 2127 | . . . . . . 219 . 504 428 504 302 170 Ramming 2 | . . . . . . . . . . . . 2 Kinetic 1726 | 10 358 414 944 . . . . . . . . . Thermal 2719 | 86 . . 480 26 . 219 . 504 428 504 302 170 Explosive . | . . . . . . . . . . . . . Electromagnetic 250 | 162 . . 88 . . . . . . . . . Impact . | . . . . . . . . . . . . . Slashing . | . . . . . . . . . . . . . Piercing . | . . . . . . . . . . . . . Highest Corruption 7 | . 2 2 2 2 5 . . 7 . 1 3 4 Average Corruption 2 | . 2 2 2 2 3 . . 7 . 1 2 3 Corruption Purged . | . . . . . . . . . . . . . Corruption Blocked . | . . . . . . . . . . . . . Effects 116 | . 1 7 72 25 3 . . 6 . . 1 1 Message Errors 31 | . . 2 20 7 . . . 2 . . . . Matter Fused 26 | . . 2 16 5 1 . . 1 . . 1 . Heat Flow Errors 16 | . 1 1 9 5 . . . . . . . . Energy Discharges 11 | . . . 6 2 . . . 2 . . . 1 Parts Fused 3 | . . 1 2 . . . . . . . . . Data Loss (minor) 14 | . . . 10 2 2 . . . . . . . Data Loss (major) 5 | . . 1 4 . . . . . . . . . Misfires 4 | . . . 2 2 . . . . . . . . Alerts 4 | . . . 1 2 . . . 1 . . . . Weapon Failures 2 | . . . 2 . . . . . . . . . Overload Shots . | . . . . . . . . . . . . . Overflow Damage 615 | . . . 3 . . 76 . 226 . 141 59 110 Projectiles 3 | . . . 3 . . . . . . . . . Explosions . | . . . . . . . . . . . . . Melee 612 | . . . . . . 76 . 226 . 141 59 110 Knockbacks 14 | . . 4 9 . . . . . . . . 1 Impact 1 | . . . . . . . . . . . . 1 Kinetic 13 | . . 4 9 . . . . . . . . . Secondary . | . . . . . . . . . . . . . Self-Inflicted Damage 46 | 27 . 18 . . . . . . . . . 1 Shots 2 | 1 . 1 . . . . . . . . . . Rammed 1 | . . . . . . . . . . . . 1 Targets Rammed 1 | . . . . . . . . . . . . 1 Kicked . | . . . . . . . . . . . . . Crushed . | . . . . . . . . . . . . . Highest Temperature 443 | 84 90 319 249 274 . 245 . 220 160 342 443 131 Average Temperature 80 | 33 16 103 78 102 . 84 . 56 57 80 164 34 Received Heat Transfer 1139 | . 12 33 400 . . 156 . 183 . 94 9 252 Effects 11 | . . 1 . . . . . 1 . 2 7 . Shutdowns 2 | . . . . . . . . . . 1 1 . Energy Bleed 2 | . . . . . . . . 1 . . 1 . Interference 4 | . . . . . . . . . . . 4 . Matter Decay 2 | . . 1 . . . . . . . . 1 . Short Circuit 1 | . . . . . . . . . . 1 . . Siege Activations . | . . . . . . . . . . . . . Martial Activations . | . . . . . . . . . . . . . Shielding Activations . | . . . . . . . . . . . . . Robots Disrupted . | . . . . . . . . . . . . . Combat Hostiles . | . . . . . . . . . . . . . Robots Corrupted . | . . . . . . . . . . . . . Combat Hostiles . | . . . . . . . . . . . . . Parts Fried 1 | 1 . . . . . . . . . . . . Impact Corruptions . | . . . . . . . . . . . . . Robots Melted . | . . . . . . . . . . . . . Combat Hostiles . | . . . . . . . . . . . . . Parts Melted 16 | . . . 1 . . 1 . 3 3 3 4 1 Heat Transferred 3216 | 150 . . 629 37 . 240 . 480 480 720 360 120 Parts Sabotaged . | . . . . . . . . . . . . . Parts Stolen . | . . . . . . . . . . . . . Parts Stripped . | . . . . . . . . . . . . . Power Chain Reactions 2 | 2 . . . . . . . . . . . . Alert | -11 -10 -10 -10 -9 -9 -6 -6 -6 -5 -4 -3 -2 ------- Run | Yrd Mat Min Sub Rec Scr Fac Was Fac Fac Fac Res Res Maximum Alert Level 1 | . . . . . . 1 . 1 . . 1 . Low Security (%) 97 | 100 100 100 . 100 . 90 100 91 100 100 90 100 Level 1 2 | . . . . . . 9 . 8 . . 9 . Level 2 . | . . . . . . . . . . . . . Level 3 . | . . . . . . . . . . . . . Level 4 . | . . . . . . . . . . . . . Level 5 . | . . . . . . . . . . . . . High Security . | . . . . . . . . . . . . . Max Security . | . . . . . . . . . . . . . Peak Influence 374 | 10 154 123 . 30 . 374 130 309 166 72 217 120 Initial 151 | . . 31 . 18 . . 130 56 151 53 27 116 Average 39 | 1 63 33 . 3 . 94 106 43 136 33 88 46 Influence Increases 2653 | 25 208 205 165 156 . 539 . 408 60 299 287 301 Destroy 0b10 Robot/C 340 | . 140 100 60 . . . . . . 20 20 . Destroy 0b10 Robot/NC 130 | 25 25 . . 5 . 10 . 15 20 15 10 5 Destroy Leader 100 | . 38 30 . . . . . . 4 14 14 . Successful Hack 71 | . 4 . . 16 . 6 . 5 . 14 . 26 Select Force Hacks 120 | . . . . 120 . . . . . . . . Disable Machine 75 | . . 30 . 15 . 15 . 15 . . . . Destroy Structure 122 | . 1 15 . . . 13 . 13 6 26 18 30 Partial Spotted 195 | . . . . . . . . 30 30 90 15 30 Lose Combat Pursuer 1500 | . . 30 105 . . 495 . 330 . 120 210 210 Influence Decreases 2534 | 25 128 266 145 195 . 165 294 179 258 356 134 389 Entered New Map 683 | . . 49 11 21 . . 244 24 158 58 27 91 Time Decay 1729 | 25 128 217 124 174 . 135 50 153 100 278 107 238 Lost Part 112 | . . . 10 . . 30 . 2 . 10 . 60 Lost Ally 10 | . . . . . . . . . . 10 . . Squads Dispatched 32 | . 2 . . . . 6 . 9 3 7 2 3 Investigation 16 | . . . . . . 4 . 4 3 2 1 2 Extermination 7 | . . . . . . 1 . 2 . 3 . 1 Reinforcement 9 | . 2 . . . . 1 . 3 . 2 1 . Assault . | . . . . . . . . . . . . . Garrison . | . . . . . . . . . . . . . Intercept . | . . . . . . . . . . . . . Searches Triggered . | . . . . . . . . . . . . . Construction Impeded . | . . . . . . . . . . . . . Haulers Reinforced . | . . . . . . . . . . . . . Active Scanning Responses . | . . . . . . . . . . . . . Cargo Convoy Interrupts . | . . . . . . . . . . . . . Stealth | -11 -10 -10 -10 -9 -9 -6 -6 -6 -5 -4 -3 -2 --------- Run | Yrd Mat Min Sub Rec Scr Fac Was Fac Fac Fac Res Res Distress Signals 5 | . 1 . . . . . . . . 2 1 1 Communications Jammed . | . . . . . . . . . . . . . Distress Signals . | . . . . . . . . . . . . . Times Spotted 226 | . 11 8 35 . . 40 6 43 5 21 19 38 Peak Tracking Total 26 | . 4 3 5 . . 20 6 16 2 5 9 26 Tactical Retreats 38 | . . 1 3 . . 9 . 7 . 7 5 6 Traps | -11 -10 -10 -10 -9 -9 -6 -6 -6 -5 -4 -3 -2 ------- Run | Yrd Mat Min Sub Rec Scr Fac Was Fac Fac Fac Res Res Traps Triggered 9 | . 1 1 1 . 1 1 . 2 . . 1 1 Indirectly . | . . . . . . . . . . . . . Trap Hack Attempts . | . . . . . . . . . . . . . Triggered . | . . . . . . . . . . . . . Disarmed . | . . . . . . . . . . . . . Reprogrammed . | . . . . . . . . . . . . . Reused . | . . . . . . . . . . . . . Traps Extracted . | . . . . . . . . . . . . . Installed 2 | . . . . . 1 1 . . . . . . Triggered . | . . . . . . . . . . . . . Most Traps Carried 3 | . . 2 2 2 3 3 1 1 1 1 1 1 Machines | -11 -10 -10 -10 -9 -9 -6 -6 -6 -5 -4 -3 -2 ---------- Run | Yrd Mat Min Sub Rec Scr Fac Was Fac Fac Fac Res Res Machines Disabled 7 | . . 2 2 1 . 1 . 1 . . . . Max in Single Turn 2 | . . 2 2 1 . 1 . 1 . . . . Machines Repaired . | . . . . . . . . . . . . . Machines Dismantled . | . . . . . . . . . . . . . Machines Sabotaged . | . . . . . . . . . . . . . Overloaded Fab Kills . | . . . . . . . . . . . . . Hacking | -11 -10 -10 -10 -9 -9 -6 -6 -6 -5 -4 -3 -2 --------- Run | Yrd Mat Min Sub Rec Scr Fac Was Fac Fac Fac Res Res Machines Accessed 47 | . 1 1 2 10 3 6 . 7 7 4 1 5 Terminals 16 | . 1 . . 6 . 1 . 1 3 2 . 2 Fabricators 2 | . . . . . . 1 . 1 . . . . Repair Stations 3 | . . . . . . . . 1 1 . . 1 Recycling Units 20 | . . . . 4 . 4 . 4 3 2 1 2 Scanalyzers . | . . . . . . . . . . . . . Garrison Access . | . . . . . . . . . . . . . Total Hacks 104 | . 2 1 6 17 24 9 . 9 14 11 1 10 Successful 77 | . 2 1 6 13 24 5 . 7 5 5 1 8 Failed 27 | . . . . 4 . 4 . 2 9 6 . 2 Catastrophic 4 | . . . . . . . . 1 . 1 . 2 Database Lockouts . | . . . . . . . . . . . . . Manual 55 | . 2 . . 17 . 6 . 6 9 10 1 4 Terminals 36 | . 2 . . 13 . 2 . 1 8 6 . 4 Fabricators 2 | . . . . . . 1 . 1 . . . . Repair Stations 8 | . . . . . . . . 2 2 . . 4 Recycling Units 27 | . . . . 4 . 6 . 5 4 5 1 2 Scanalyzers . | . . . . . . . . . . . . . Garrison Access . | . . . . . . . . . . . . . Terminal Hacks 33 | . . 1 6 . 24 1 . . . . . 1 Record 28 | . . . 5 . 23 . . . . . . . Open Door 1 | . . 1 . . . . . . . . . . Level Access Points 1 | . . . . . . . . . . . . 1 Recycling Unit Index 1 | . . . . . . 1 . . . . . . Proto ID Catalog 2 | . . . 1 . 1 . . . . . . . Fabricator Hacks 2 | . . . . . . 1 . 1 . . . . Network Status 2 | . . . . . . 1 . 1 . . . . Repair Station Hacks 7 | . . . . . . . . 2 1 . . 4 Scan Component 3 | . . . . . . . . 1 . . . 2 Repair 3 | . . . . . . . . 1 . . . 2 Refit 1 | . . . . . . . . . 1 . . . Recycling Unit Hacks . | . . . . . . . . . . . . . Scanalyzer . | . . . . . . . . . . . . . Garrison Access Hacks . | . . . . . . . . . . . . . Unauthorized Hacks 35 | . 2 . . 13 . 3 . 4 4 5 1 3 Terminals 16 | . 2 . . 9 . . . . 1 3 . 1 Assimilate 1 | . . . . . . . . . . 1 . . Botnet 9 | . 1 . . 4 . . . . 1 2 . 1 Skim 6 | . 1 . . 5 . . . . . . . . Fabricators . | . . . . . . . . . . . . . Repair Stations . | . . . . . . . . . . . . . Recycling Units 19 | . . . . 4 . 3 . 4 3 2 1 2 Tunnel 4 | . . . . 4 . . . . . . . . Fedlink 15 | . . . . . . 3 . 4 3 2 1 2 Scanalyzers . | . . . . . . . . . . . . . Garrison Access . | . . . . . . . . . . . . . Data Cores Recovered 2 | . . . . . . . . . . 1 . 1 Used 1 | . . . . . . . . . . 1 . . Hacking Detections 13 | . 1 . . 1 . 4 . 2 2 2 . 1 Full Trace Events 2 | . . . . 1 . 1 . . . . . . Feedback Events . | . . . . . . . . . . . . . Feedback Blocked . | . . . . . . . . . . . . . Robot Schematics Acquired . | . . . . . . . . . . . . . Robots Built . | . . . . . . . . . . . . . Authchips . | . . . . . . . . . . . . . Time . | . . . . . . . . . . . . . Total Robot Build Rating . | . . . . . . . . . . . . . Part Schematics Acquired . | . . . . . . . . . . . . . Parts Built . | . . . . . . . . . . . . . Authchips . | . . . . . . . . . . . . . Time . | . . . . . . . . . . . . . Total Part Build Rating . | . . . . . . . . . . . . . Parts Repaired 3 | . . . . . . . . 1 . . . 2 Time 211 | . . . . . . . . 62 . . . 149 Parts Recycled . | . . . . . . . . . . . . . Recycled Matter . | . . . . . . . . . . . . . Retrieved Matter . | . . . . . . . . . . . . . Retrieved Components . | . . . . . . . . . . . . . Parts Scanalyzed . | . . . . . . . . . . . . . Part Schematics Acquired . | . . . . . . . . . . . . . Parts Damaged . | . . . . . . . . . . . . . Bothacking | -11 -10 -10 -10 -9 -9 -6 -6 -6 -5 -4 -3 -2 ------------ Run | Yrd Mat Min Sub Rec Scr Fac Was Fac Fac Fac Res Res Used RIF Installer . | . . . . . . . . . . . . . Robots Hacked . | . . . . . . . . . . . . . Non-combat . | . . . . . . . . . . . . . Combat . | . . . . . . . . . . . . . Robot Hacks Applied . | . . . . . . . . . . . . . Relay Couplers Released . | . . . . . . . . . . . . . Fabnet Peak Effective % . | . . . . . . . . . . . . . Robots Rewired . | . . . . . . . . . . . . . Allies Hacked . | . . . . . . . . . . . . . Hacks Repelled . | . . . . . . . . . . . . . Allies | -11 -10 -10 -10 -9 -9 -6 -6 -6 -5 -4 -3 -2 -------- Run | Yrd Mat Min Sub Rec Scr Fac Was Fac Fac Fac Res Res Total Allies 1 | . . . . . . . . . . 1 . . Largest Group 1 | . . . . . . . . . . 1 . . Highest-Rated Group 10 | . . . . . . . . . . 10 . . Highest-Rated Ally 10 | . . . . . . . . . . 10 . . Total Orders 1 | . . . . . . . . . 1 . . . RETURN 1 | . . . . . . . . . 1 . . . Ally Attacks . | . . . . . . . . . . . . . Total Damage . | . . . . . . . . . . . . . Kills . | . . . . . . . . . . . . . Allies Corrupted . | . . . . . . . . . . . . . Allies Melted 1 | . . . 1 . . . . . . . . . Intel | -11 -10 -10 -10 -9 -9 -6 -6 -6 -5 -4 -3 -2 ------- Run | Yrd Mat Min Sub Rec Scr Fac Was Fac Fac Fac Res Res Active Infowar (turns) 4609 | 9 418 929 479 . 37 383 112 737 207 606 224 468 Optics 2591 | . . . . . . 257 112 737 207 606 224 448 Sensors 821 | . . . . . . . . 359 . . . 462 Structural 2009 | . . . . . 37 129 . 559 207 514 148 415 Seismic 1835 | 9 418 929 479 . . . . . . . . . Cloaking 395 | . . . . . . . . 3 13 . 47 332 Robot Analysis Total . | . . . . . . . . . . . . . Derelict Logs Recovered 7 | . . 1 3 . 3 . . . . . . . Drone Launches 1 | . . . . . . . . . 1 . . . Drone Recoveries 1 | . . . . . . . . . 1 . . . Exploration | -11 -10 -10 -10 -9 -9 -6 -6 -6 -5 -4 -3 -2 ------------- Run | Yrd Mat Min Sub Rec Scr Fac Was Fac Fac Fac Res Res Turns Passed 18694 | 149 418 929 4383 1850 8098 455 112 737 207 606 224 526 Spaces Moved 11311 | 68 262 474 2249 555 3317 641 134 956 469 1219 419 548 Core 892 | 10 . . . . 772 . . . . . . 110 Treads 3984 | 57 70 138 2008 555 1156 . . . . . . . Legs 529 | 1 192 336 . . . . . . . . . . Wheels 1630 | . . . 241 . 1389 . . . . . . . Hover . | . . . . . . . . . . . . . Flight 4276 | . . . . . . 641 134 956 469 1219 419 438 Fastest Speed 25 | 50 120 120 130 250 50 34 34 34 32 26 27 25 Average Speed 144 | 143 130 179 178 326 237 34 34 34 32 26 27 31 Slowest Speed 970 | 160 160 250 250 330 970 80 34 34 32 28 27 232 Overloaded Moves 9 | . . . . . . . . . . . . 9 Propulsion Burnouts . | . . . . . . . . . . . . . Robots Hopped 36 | . . . . . . 4 . 11 6 9 . 6 Potential Cave-ins . | . . . . . . . . . . . . . Cave-ins Triggered 1 | . . . . . . . . 1 . . . . Exploration Rate (%) 50 | 4 59 97 95 85 88 32 77 33 20 36 16 20 Regions Visited 12 Branch Regions 4 Pre-discovered Areas 15 | . . 1 1 6 6 1 . . . . . . Known Exits Taken 6 | . . . 1 . 1 . . 1 1 1 1 . Unknown Exits Taken 4 | 1 1 1 . 1 . . . . . . . . Scrap Searched 18 | . . 1 12 . 5 . . . . . . . Spaces Dug 66 | . . . 2 . . 14 . 14 3 13 10 10 Terrain Destroyed 107 | 8 . 16 19 . . 14 . 14 3 13 10 10 Melee 64 | . . . . . . 14 . 14 3 13 10 10 Projectile 19 | . . . 19 . . . . . . . . . AOE 24 | 8 . 16 . . . . . . . . . . Terrain Rammed . | . . . . . . . . . . . . . Walls Destroyed . | . . . . . . . . . . . . . Machines Disabled . | . . . . . . . . . . . . . Actions | -11 -10 -10 -10 -9 -9 -6 -6 -6 -5 -4 -3 -2 --------- Run | Yrd Mat Min Sub Rec Scr Fac Was Fac Fac Fac Res Res Total 13272 | 97 310 510 2494 597 3534 853 200 1327 506 1456 504 884 Wait 1349 | . 11 2 121 35 89 134 65 325 24 199 49 295 Move 11233 | 67 261 473 2248 554 3316 633 133 936 457 1201 418 536 Hop 31 | . . . . . . 4 . 8 5 8 . 6 Pick Up 163 | 9 11 5 13 3 70 26 1 5 2 5 3 10 Fast Attach 29 | 4 . . 4 1 1 6 . 4 1 5 3 . Attach 69 | 4 2 2 4 1 19 14 . 3 4 4 3 9 Detach 14 | . . . . . 4 3 . 2 2 . 1 2 Swap 32 | 1 3 1 13 1 4 1 . 1 1 3 2 1 Drop 109 | 1 7 5 23 2 21 14 1 5 1 9 7 13 Fire 116 | 11 15 22 68 . . . . . . . . . Melee 97 | . . . . . . 17 . 20 9 22 18 11 Ram 1 | . . . . . . . . . . . . 1 Kick . | . . . . . . . . . . . . . Crush . | . . . . . . . . . . . . . Escape Stasis 18 | . . . . . . . . 18 . . . . Rewire 9 | . . . . . 9 . . . . . . . Trap 2 | . . . . . 1 1 . . . . . . Miscellaneous . | . . . . . . . . . . . . . Route ------- -11/Scrapyard -10/Materials (discovered 2 exits: [*Mat] / *Min) -10/Mines (discovered 4 exits: [*Mat x2] / [*Exi] / *Sub) -10/Subcaves (discovered 3 exits: [*Mat x2] / *Rec) -9/Recycling -9/Scraptown (discovered 2 exits: *Fac x2) -6/Factory (discovered 6 exits: Fac x4 / *Low x2) -6/Waste -6/Factory (discovered 2 exits: *Fac / *Low) -5/Factory -4/Factory (discovered 2 exits: *Res x2) -3/Research -2/Research (discovered 3 exits: *Acc x3) History --------- Turn | Location | Event 17 | -11/Scrapyard | Discovered new exit (range 15) 150 | -11/Scrapyard | Entered Materials 305 | -10/Materials | Build established: Mutant 499 | -10/Materials | Discovered new exit (range 16) 556 | -10/Materials | Discovered new exit (range 8) 568 | -10/Materials | Entered Mines 582 | -10/Mines | Learned Materials emergency access door positions 610 | -10/Mines | Found a hidden stash of uninstalled traps 662 | -10/Mines | Deemed a non-threat by the Exiles lab entrance 662 | -10/Mines | Discovered new exit (range 5) 1054 | -10/Mines | Discovered new exit (range 8) 1159 | -10/Mines | Excavation squad dispatched 1159 | -10/Mines | A large section of the Mines collapsed 1232 | -10/Mines | Met a Derelict who couldn't figure out how to use a Trap Extractor 1432 | -10/Mines | Discovered new exit (range 11) 1461 | -10/Mines | Discovered new exit (range 6) 1466 | -10/Mines | Learned location of Storage (-9) 1497 | -10/Mines | Entered Subcaves 1498 | -10/Subcaves | Approached by a straggling Scientist 1608 | -10/Subcaves | Ambushed by swarm of Subdwellers 1804 | -10/Subcaves | Disturbed a concealed Subdweller 1849 | -10/Subcaves | Disturbed a concealed Subdweller 2198 | -10/Subcaves | Visited Clippyterm 2203 | -10/Subcaves | Identified exit to Recycling 2203 | -10/Subcaves | Learned Research machine intel 2432 | -10/Subcaves | Learned location of Zion (-6) 2676 | -10/Subcaves | A swath of the cavern ceiling suddenly collapsed 2762 | -10/Subcaves | A swath of the cavern ceiling suddenly collapsed 2828 | -10/Subcaves | Discovered new exit (range 15) 2920 | -10/Subcaves | Shifting Twisted Machinery released Barrage Gun 2955 | -10/Subcaves | Shifting Twisted Machinery released Sub. Machine Gun 3189 | -10/Subcaves | Visited 4L-MR0's lab 3207 | -10/Subcaves | Found Gun Armor 3491 | -10/Subcaves | Core integrity fell below 50% 4358 | -10/Subcaves | Build established: Scavenger-Mutant 4399 | -10/Subcaves | Learned Materials terminal intel 4604 | -10/Subcaves | A Subdweller sparked back to life 4604 | -10/Subcaves | A Subdweller sparked back to life 4642 | -10/Subcaves | Discovered new exit (range 9) 4745 | -10/Subcaves | Learned Materials interactive machine intel 4747 | -10/Subcaves | Shifting Twisted Machinery released Scrap Shield 4783 | -10/Subcaves | Shifting Twisted Machinery released Flamer 4967 | -10/Subcaves | Found Flightbrick 5880 | -10/Subcaves | Entered Recycling 6280 | -9/Recycling | Build established: Mutant 6873 | -9/Recycling | Scanned before Scraplab entrance 7210 | -9/Recycling | Loaded intel: 8 recycling unit locations 7258 | -9/Recycling | Learned location of Mines (-9) 7297 | -9/Recycling | Learned location of 2 exits from Materials 7346 | -9/Recycling | Learned location of 3 exits from Materials 7377 | -9/Recycling | Learned Materials stockpile data 7420 | -9/Recycling | Learned Storage emergency access door positions 7700 | -9/Recycling | Entered Scraplab 7727 | -9/Recycling | Discovered new exit (range 2) 7730 | -9/Recycling | Entered Scraptown 7730 | -9/Scraptown | System corruption cleaned by C-Scrubber 7981 | -9/Scraptown | Learned location of Extension (-5) 8003 | -9/Scraptown | Visited TADAMA 8031 | -9/Scraptown | Visited Fellowship of the Rings 8040 | -9/Scraptown | Visited Scrapoid Research Area 8051 | -9/Scraptown | Visited Spacefarers 8192 | -9/Scraptown | Visited UFD Registry 8192 | -9/Scraptown | Registered with UFD as "Wirerigger" 8364 | -9/Scraptown | Heard Great Nut preacher, LISTEN AND RECITE! 8384 | -9/Scraptown | Scanned Subdweller tech in exchange for log data 8397 | -9/Scraptown | Learned location of 2 exits from Lower Caves 8401 | -9/Scraptown | Learned Research emergency access door positions 8405 | -9/Scraptown | Learned 12 Research zone layouts 8458 | -9/Scraptown | Discovered new exit (range 13) 8606 | -9/Scraptown | Guru changed UFD alias to "Flexitalker" 9315 | -9/Scraptown | Visited Comm Corps 9649 | -9/Scraptown | Visited DA-N13 Charitable Foundation 9678 | -9/Scraptown | Found DCF Scrap (27 items) 9720 | -9/Scraptown | Visited Research Penetration Think Tank 9749 | -9/Scraptown | Visited Scrapoid Pod Storage 9774 | -9/Scraptown | Visited Curators Association 9799 | -9/Scraptown | Visited Modified Component R&D 9876 | -9/Scraptown | Visited Science Testing Area 9898 | -9/Scraptown | Visited LU-1G1's Boring Crew 9920 | -9/Scraptown | Visited Junk Cannon Lab 9977 | -9/Scraptown | Delivered Scrap Shield to a Scientist 10070 | -9/Scraptown | Visited Science Guys 10140 | -9/Scraptown | Visited Cartography Club 10190 | -9/Scraptown | Found Surveybot 17 Chip 10213 | -9/Scraptown | Found Deep Structural Scanner 10227 | -9/Scraptown | Learned location of Recycling (-9) 10227 | -9/Scraptown | Learned location of Proximity Caves (-6) 10227 | -9/Scraptown | Learned location of Archives (-5) 10227 | -9/Scraptown | Learned 12 Materials zone layouts 10227 | -9/Scraptown | Learned 12 Factory zone layouts 10227 | -9/Scraptown | Learned 20 Factory zone layouts 10227 | -9/Scraptown | Learned 4 Access zone layouts 10227 | -9/Scraptown | Learned 8 Access zone layouts 10227 | -9/Scraptown | Learned 8 Upper Caves zone layouts 10227 | -9/Scraptown | Learned 12 Upper Caves zone layouts 10227 | -9/Scraptown | Learned 8 Proximity Caves zone layouts 10227 | -9/Scraptown | Learned 24 Proximity Caves zone layouts 10227 | -9/Scraptown | Learned 4 Hub_04(d) zone layouts 10227 | -9/Scraptown | Learned Factory emergency access door positions 10227 | -9/Scraptown | Learned location of 1 exit from Factory 10227 | -9/Scraptown | Learned location of 2 exits from Lower Caves 10227 | -9/Scraptown | Identified exit to Factory 10246 | -9/Scraptown | Found Unknown Device 10277 | -9/Scraptown | Identified Scrapoid Pod 11106 | -9/Scraptown | Found Prototype Special Weapon 11107 | -9/Scraptown | Identified Junk Cannon 11634 | -9/Scraptown | Warned about trapping Scraptown 11831 | -9/Scraptown | Found Corrupted Thermal Lance 11932 | -9/Scraptown | System corruption cleaned by C-Scrubber 13604 | -9/Scraptown | Build established: Hauler-Mutant 14601 | -9/Scraptown | Visited Shadow of the Wyrm 14651 | -9/Scraptown | Visited SPCMW 15527 | -9/Scraptown | System corruption cleaned by C-Scrubber 15533 | -9/Scraptown | System corruption cleaned by C-Scrubber 15699 | -9/Scraptown | Met Optimus 15699 | -9/Scraptown | Accepted into 0bPrime 15828 | -9/Scraptown | Entered Factory 15828 | -6/Factory | Evolved 8 slots: Power x1, Propulsion x3, Utility x3, Weapon x1 15829 | -6/Factory | Identified exit to Factory 15829 | -6/Factory | Identified exit to Lower Caves 15831 | -6/Factory | Attached Flightbrick, gained temporary slots: Utility x3 15846 | -6/Factory | Attached Gun Armor, gained temporary slots: Weapon x2 16022 | -6/Factory | Loaded intel: 8 recycling unit locations 16190 | -6/Factory | Learned location of Protoforge (-2) 16283 | -6/Factory | Sucked down chute 16283 | -6/Factory | Entered Waste 16298 | -6/Waste | Build established: Mutant 16341 | -6/Waste | Spotted C-40 Crusher 16341 | -6/Waste | Spotted C-40 Crusher 16351 | -6/Waste | Spotted C-40 Crusher 16353 | -6/Waste | Spotted C-40 Crusher 16357 | -6/Waste | Spotted C-40 Crusher 16357 | -6/Waste | Spotted C-40 Crusher 16364 | -6/Waste | Crushed by Compactor (0 parts destroyed, 1 dropped) 16365 | -6/Waste | Crushed by Compactor (0 parts destroyed, 1 dropped) 16381 | -6/Waste | Discovered new exit (range 14) 16395 | -6/Waste | Identified exit to Factory 16395 | -6/Waste | Entered Factory 16499 | -6/Factory | Repaired Adv. Surge Thruster 16732 | -6/Factory | Discovered exit to Lower Caves (range 13) 16872 | -6/Factory | Build established: Scout 16946 | -6/Factory | Crushed by falling debris 17022 | -6/Factory | Loaded intel: 8 recycling unit locations 17086 | -6/Factory | Discovered exit to Factory (range 22) 17114 | -6/Factory | Spotted B-75 Beast 17132 | -6/Factory | Entered another Factory area 17132 | -5/Factory | Evolved 2 slots: Propulsion x1, Utility x1 17239 | -5/Factory | Loaded intel: 8 recycling unit locations 17309 | -5/Factory | Discovered new exit (range 19) 17321 | -5/Factory | Identified exit to Factory 17339 | -5/Factory | Entered another Factory area 17339 | -4/Factory | Evolved 2 slots: Propulsion x1, Utility x1 17423 | -4/Factory | Discovered new exit (range 19) 17467 | -4/Factory | Loaded intel: 8 recycling unit locations 17560 | -4/Factory | Found Prototype Processor 17560 | -4/Factory | Identified Exp. Terrain Scan Processor 17602 | -4/Factory | Build established: Hacker-Sprinter 17875 | -4/Factory | Discovered new exit (range 14) 17889 | -4/Factory | Spotted B-86 Titan 17937 | -4/Factory | Identified exit to Research 17945 | -4/Factory | Entered Research 17945 | -3/Research | Evolved 2 slots: Utility x2 17948 | -3/Research | Loaded intel: 127 machine locations 17957 | -3/Research | Discovered new exit (range 9) 17959 | -3/Research | Identified exit to Research 17994 | -3/Research | Spotted B-86 Titan 18024 | -3/Research | Loaded intel: 5 recycling unit locations 18169 | -3/Research | Entered another Research area 18169 | -2/Research | Evolved 2 slots: Propulsion x1, Utility x1 18177 | -2/Research | Found Prototype Launcher 18178 | -2/Research | Identified Point Singularity Launcher 18281 | -2/Research | Repaired Cld. Field Propulsion Drive 18333 | -2/Research | Repaired Cloaking Device 18369 | -2/Research | Identified exit to Access 18378 | -2/Research | Loaded intel: 5 recycling unit locations 18588 | -2/Research | Spotted B-90 Cyclops 18611 | -2/Research | Found Prototype Processor 18638 | -2/Research | Identified Exp. Signal Interpreter 18668 | -2/Research | Lost 12 parts (2p5n5u) 18674 | -2/Research | Core integrity fell below 50% 18689 | -2/Research | Core integrity fell below 20% 18695 | -2/Research | Destroyed by S-43 Plague with Heavy Machine Gun Last Messages --------------- 18637_ Penetrated by Slug. 18637_ Slug penetrates Wall. 18637_ Cld. Field Propulsion Drive destroyed. 18637_ Slug penetrates Wall. 18637_ Adv. Sensor Array destroyed. 18637_ Slug penetrates Wall. 18637_ Discarded Gun Armor. 18637_ Penetrated by Slug. 18637_ Cloaking Device destroyed. 18638_ Temporary Weapon slot lost. 18638_ Dropped Thermal Lance. 18638_ Identified Exp. Signal Interpreter. 18638_ Faulty integration triggers system corruption (+2). 18657_ Penetrated by Slug. 18662_ System corrupted: Energy discharge (-32). 18666_ Slammed into R-10 Processor. 18666_ R-10 Processor knocked back. 18676_ Knocked back. 18685_ Acquired 6 matter. 18688_ Knocked back. Map ----- +----------------------------------------------------+ | ?????????????????????????????????????????????????? | | ?????????????????????????????????????????????????? | | ?????????????????????????????????????????????????? | | ?????????????????????????????????????????????????? | | ?????????????????????????????????????????????????? | | ?????????????????????????????????????????????????? | | ?????????????????????????????????????????????????? | | ?????????????????????????????????????????????????? | | ?????????????????????????????????????????????????? | | ?????????????????????????????????????????????????? | | ?????????????????????????????????????????????????? | | ?????????????????????????????????????????????????? | | ?????????????????????????????????????????????????? | | ??????????????????????????????? ?????????????????? | | ??????????????????????????????? /???????????????? | | ?????????????????????????????? #???????????????? | | ?????????????????????????????? #???????????????? | | ?????????????????????????????? #???????????????? | | ?????????????????????????????? #???????????????? | | ?????????????????????????????? #???????????????? | | ?????????????????????????????? #???????????????? | | ?????????????????????????????? #???????????????? | | ?????????????????????????????# #???????????????? | | ?????????????????????????????# #???????????????? | | ?????????????# ############ ##??????????????? | | ?????????????# sps s @ # ##########?????? | | ?????????????# # s !! # ????? | | ??????????????????# s !!% ; ^ ????? | | ??????????????????# # ????? | | ??????????????????# # H ###+###????????? | | ??????????????????#k ## ##??????????????? | | ??????????????????#ss ## #?????????? ? | | ?????????????????sss ## % #?????????# ? | | ??????????????? ############ #?????????# ? | | ???????????????+##???????????# #?????????# ? | | ?????????????????????????????# #?????????# "" | | ?????????????????????????????# #?????????# "" | | ?????????????????????????????# #?????????# "" | | ?????????????????????????????# %#?????????# | | ?????????????????????????????# #?????????# | | ?????????????????????????????# #?????????# | | ?????????????????????????????# #?????????# "" | | ?????????????????????????????# #?????????# "" | | ?????????????????????????????# #?????????# "" | | ?????????????????????????????# ########### % | | ?????????????????????????????# # ## | | ?????????????????????????????# # + | | ?????????????????????????????# # """### | | ?????????????????????????????# # """#?###### | | ?????????????????????????????# + ""#?# | +----------------------------------------------------+ Best States ------------- Heat Dissipation 49 Energy Generation 29 Energy Capacity 325 Matter Stores 300 Matter Capacity 300 Sight Range 22 Robot Scan Range 16 Terrain Scan Density 10 Cloak Strength 2 Armor Coverage 325 Evasion (%) 77 Melee Accuracy 8 Recoil Reduction 2 Offensive Hacking 12 Defensive Hacking 20 Item Schematics ----------------- None Robot Schematics ------------------ None Fabricated ------------ Nothing Repaired ---------- Adv. Surge Thruster | 10% | -6/Factory Cld. Field Propulsion Drive | 68% | -2/Research Cloaking Device | 34% | -2/Research Alien Tech Used ----------------- None Achievements -------------- Deadly Force Challenges ------------ None Game ------ Seed CorruptionImprinterCyclogen Manual? 0 Play Time 02:08:03 Cumulative 154.1 hours Start 2025.08.28 @ 16:05:57 End 2025.08.28 @ 20:47:29 Sessions 1 Manual Loads 0 Difficulty Rogue Special Mode None Game No. 217 Rogue 217 Adventurer 0 Explorer 0 Win Type - Total 1 Types 1/0/0/0/0/0/0/0/0/0 Lore% 71 Gallery% 64 Achievement% 55 Wizard Run 0 Options --------- Layout 0 ASCII 0 Keyboard 0 Movement Mouse Keybinds 0 Fullscreen 1 Font 16/SmallcapsGlow Map View 75x55 Zoom Use 0% Tactical HUD 1 Map Filters NONE Filters NONE Steam 1 RUN: 46f91662-8568-4a1c-bf70-f73967cdd1bb